fUSD/lending_fUSD_20240322
["ID","MTS","AMOUNT","RATE_DAILY","PERIOD"]
[320059865,1711123842751,-5000.0,0.0002,2]
[320059866,1711123842761,-854.24216831,0.0002,2]
[320059867,1711123842771,-590.61224363,0.0002,2]
[320059868,1711123842781,-1477.2890239,0.0002,2]
[320059869,1711123842791,-1247.90893269,0.0002,2]
[320059870,1711123842801,-180.0,0.00020051,2]
[320059871,1711123842810,-640.06011571,0.00020166,2]
[320059872,1711123842820,-3179.0,0.000204,2]
[320059873,1711123842830,-800.0,0.000204,2]
[320059874,1711123842839,-1506.17687922,0.00020494,2]
[320059875,1711123842849,-10032.66751024,0.0002079,2]
[320059876,1711123842859,-10032.66751019,0.0002079,2]
[320059877,1711123842869,-10032.66751019,0.0002079,2]
[320059878,1711123842878,-1921.26810181,0.0002079,2]
[320059879,1711123842888,-1921.26810176,0.0002079,2]
[320059880,1711123842898,-1921.26810176,0.0002079,2]
[320059881,1711123842908,-495.35876638,0.00020799,2]
[320059882,1711123842921,-500.0,0.00020799,2]
[320059883,1711123842931,-155.66796063,0.00020799,2]
[320059884,1711123842941,-500.0,0.00020799,2]
[320059885,1711123842952,-238.99358046,0.00020799,2]
[320059886,1711123842962,-432.95250039,0.00020799,2]
[320059887,1711123842972,-4500.0,0.000208,7]
[320059888,1711123842981,-1506.17687922,0.0002082,2]
[320059889,1711123842990,-1506.17687922,0.0002084,2]
[320059890,1711123843001,-937.71421394,0.00020854,2]
[320059891,1711123843012,-285.14,0.00020899,2]
[320059893,1711123843025,-7500.0,0.000209,2]
[320059895,1711123843036,-6000.0,0.000209,7]
[320059897,1711123843045,-1362.8007229,0.000209,2]
[320059899,1711123843055,-351.50317863,0.00020921,2]
[320059901,1711123843065,-65364.54078879,0.0002098,2]
[320059903,1711123843075,-9626.92322859,0.00020986,2]
[320059905,1711123843086,-7611.0,0.00020986,2]
[320059907,1711123843096,-27194.40936995,0.00020998,2]
[320059909,1711123843109,-4456.86557972,0.00020998,2]
[320059911,1711123843118,-159912.62330798,0.00021,2]
[320059922,1711123843215,-9352.59889483,0.00021,2]
[320059924,1711123843228,-526.5420326,0.00021,2]
[320059933,1711123843299,-3358.2523445,0.00021,2]
[320059937,1711123843333,-858.3047866,0.00021,2]
[320059939,1711123843345,-1772.64518951,0.00021,2]
[320059942,1711123843358,-3157.21214346,0.00021,2]
[320059944,1711123843370,-9397.31288915,0.00021,2]
[320060214,1711123845850,-11973.9102725,0.00021,2]
[320060339,1711123847066,-1588.75,0.00021,2]
[320060356,1711123847222,-688311.03708465,0.00021,2]
[320060535,1711123929541,167.0,0.00016798,2]
[320060536,1711123929564,195.06075697,0.00016798,2]
[320060537,1711124065707,888.0,0.00025734,30]
[320060538,1711124119341,1004.0,0.00022,30]
[320060539,1711124266457,-806.04078144,0.00017998,2]
[320060540,1711124266481,-500.0,0.00017999,2]
[320060541,1711124266504,-500.0,0.00017999,2]
[320060542,1711124266528,-500.0,0.00017999,2]
[320060543,1711124266550,-500.0,0.00017999,2]
[320060544,1711124266572,-500.0,0.00017999,2]
[320060545,1711124266925,-500.0,0.00017999,2]
[320060546,1711124266948,-500.0,0.00017999,2]
[320060547,1711124266970,-500.0,0.00017999,2]
[320060548,1711124266991,-500.0,0.00017999,2]
[320060549,1711124267012,-500.0,0.00017999,2]
[320060550,1711124267033,-500.0,0.00017999,2]
[320060551,1711124267055,-500.0,0.00017999,2]
[320060552,1711124267078,-500.0,0.00017999,2]
[320060553,1711124267099,-500.0,0.00017999,2]
[320060554,1711124267120,-500.0,0.00017999,2]
[320060555,1711124267140,-500.0,0.00017999,2]
[320060556,1711124267162,-579.73493168,0.00017999,2]
[320060557,1711124288680,198.4,0.00025466,120]
[320060563,1711124947183,-806.04078144,0.0001822,2]
[320060564,1711124947214,-1228.87819461,0.00018221,2]
[320060565,1711124947245,-288.28,0.00018223,2]
[320060566,1711124947277,-1506.17687922,0.00018452,2]
[320060567,1711124947308,-1506.17687922,0.00018669,2]
[320060568,1711124947340,-3755.04611182,0.00018669,2]
[320060569,1711124974202,-1550.0,0.00019,3]
[320060570,1711124974221,-5677.81313797,0.000191,2]
[320060571,1711124974242,-250.0,0.00019462,2]
[320060572,1711124974262,-250.0,0.00019481,2]
[320060573,1711124974282,-208.84,0.00019549,2]
[320060574,1711124974301,-1976.85,0.00019579,2]
[320060575,1711124974321,-1000.0,0.00019717,2]
[320060576,1711124974342,-863.5705891,0.00019948,2]
[320060577,1711124974364,-5000.0,0.0002,2]
[320060578,1711124974384,-286.93726099,0.0002,2]
[320060579,1711124974405,-590.61224363,0.0002,2]
[320060580,1711124974426,-159.06,0.00020117,10]
[320060581,1711124974448,-156.0,0.00020147,2]
[320060582,1711124974471,-198.4,0.00020373,2]
[320060583,1711124974492,-288.28,0.00020487,2]
[320060584,1711124974513,-1250.0,0.000205,2]
[320060585,1711124974539,-1000.0,0.00020579,2]
[320060586,1711124979091,155.0,0.00018999,2]
[320060587,1711124996888,5055.5207,0.00018352,2]
[320060588,1711125021741,259.45,0.00018686,2]
[320060589,1711125023042,235.520652,0.00019726,2]
[320060590,1711125024309,235.520652,0.00020548,2]
[320060595,1711125032030,-749.95253229,0.00020802,2]
[320060596,1711125032076,-56.08824915,0.00020802,2]
[320060597,1711125032086,-167.14,0.00020803,2]
[320060598,1711125032096,-292.21,0.00020853,2]
[320060599,1711125032105,-449.32967215,0.00020893,2]
[320060600,1711125032118,-337.22584893,0.00020893,2]
[320060601,1711125032127,-40.87310251,0.00020893,2]
[320060602,1711125032175,-217.73386534,0.00020893,2]
[320060603,1711125032185,-1000.0,0.00020899,2]
[320060604,1711125032195,-150.0,0.00020899,2]
[320060605,1711125032204,-61.52113466,0.000209,2]
[320060606,1711125032254,-4684.19606534,0.000209,2]
[320060607,1711125032264,-900.0,0.000209,7]
[320060608,1711125032273,-300.36830594,0.000209,2]
[320060609,1711125032283,-336.37140425,0.000209,2]
[320060610,1711125032292,-7079.06422447,0.000209,2]
[320060611,1711125032304,-704.53494327,0.000209,2]
[320060659,1711125038623,-881.42083226,0.000209,2]
[320060661,1711125038633,-1447.76005302,0.000209,2]
[320060663,1711125038643,-259.45,0.0002095,2]
[320060665,1711125038653,-560.88004955,0.00020989,2]
[320060667,1711125038662,-161.53,0.0002099,2]
[320060669,1711125038671,-568.61,0.0002099,3]
[320060671,1711125038681,-854.01857758,0.00020998,2]
[320060674,1711125038690,-155.0,0.00020998,2]
[320060676,1711125038699,-3062.49053758,0.00020998,2]
[320060678,1711125038709,-160.32262991,0.00020998,2]
[320060680,1711125038718,-155.0,0.00020998,2]
[320060682,1711125038730,-485.36478283,0.00020998,7]
[320060684,1711125038742,-84.6457358,0.00020998,7]
[320060686,1711125038751,-155.0,0.00020998,2]
[320060688,1711125038761,-697.63824115,0.00020998,2]
[320060690,1711125038770,-197.10585952,0.00020998,2]
[320060692,1711125038780,-5000.0,0.00020998,2]
[320060694,1711125038790,-1681.75279869,0.00020999,2]
[320060712,1711125038949,-1109.32906163,0.00020999,2]
[320060714,1711125038959,-3779.20916661,0.00020999,2]
[320060716,1711125038971,-322.07047983,0.00020999,2]
[320060718,1711125038982,-613.5380616,0.00020999,2]
[320060724,1711125039023,-311.21120683,0.00020999,2]
[320060728,1711125039050,-323.15966426,0.00020999,2]
[320060730,1711125039059,-1484.6228,0.00020999,2]
[320060731,1711125039070,-300.0,0.00020999,2]
[320060733,1711125039080,-300.0,0.00020999,2]
[320060735,1711125039089,-59051.3019778,0.00021,2]
[320060742,1711125039147,-0.47644785,0.00021,2]
[320060747,1711125039180,-516.35356919,0.00021,2]
[320060749,1711125039192,-298.0223,0.00021,2]
[320060793,1711125039859,-500.54994624,0.00021,2]
[320060794,1711125039870,-264.79626387,0.00021,2]
[320060795,1711125040002,-626.70372031,0.00021,2]
[320060796,1711125040014,-3280.99999994,0.00021,2]
[320060797,1711125040053,-641.1929888,0.00021,2]
[320060798,1711125040076,-1280.8239282,0.00021,2]
[320060799,1711125040250,-25615.01735413,0.00021,2]
[320060800,1711125040262,-2429.4,0.00021,2]
[320060801,1711125040595,-271.9529219,0.00021,2]
[320060802,1711125040643,-13524.87887913,0.00021,2]
[320060803,1711125040663,-512.99332063,0.00021,2]
[320060804,1711125040688,-1769.88046709,0.00021,2]
[320060806,1711125042862,-6210.40727399,0.00021,2]
[320060807,1711125042876,-126599.99999998,0.00021,2]
[320060808,1711125042943,-405.8622478,0.00021,2]
[320060809,1711125042974,-15619.96626761,0.00021,2]
[320060810,1711125042995,-1220.64653309,0.00021,2]
[320060811,1711125043021,-712.01,0.00021,2]
[320060812,1711125043047,-0.00665028,0.00021,2]
[320060813,1711125043103,-634.84215,0.00021,2]
[320060814,1711125043127,-13868.58587855,0.00021,2]
[320060817,1711125043266,-254636.0,0.00021,2]
[320060823,1711125043313,-14144.35196441,0.00021,2]
[320061117,1711125045981,-715.46,0.00021,2]
[320061154,1711125046309,-15624.463042,0.00021,2]
[320061155,1711125046321,-1580.9162419,0.00021,2]
[320061156,1711125046333,-2989.12,0.00021,2]
[320061157,1711125046376,-331.43,0.00021,2]
[320061158,1711125046388,-718.87917685,0.00021,2]
[320061159,1711125046412,-1272.45984,0.00021,2]
[320061160,1711125046434,-207.18872888,0.00021,2]
[320061161,1711125046446,-19076.38143266,0.00021,2]
[320061162,1711125046511,-875.4790447,0.00021,2]
[320061164,1711125046523,-6301.00892565,0.00021,2]
[320061204,1711125069894,1339.568427,0.00020621,2]
[320061205,1711125071542,1506.17687922,0.00019057,2]
[320061206,1711125071629,1506.17687922,0.00019266,2]
[320061207,1711125071752,1506.17687922,0.00019494,2]
[320061208,1711125071914,1506.17687922,0.00019808,2]
[320061209,1711125072202,1506.17687922,0.00020174,2]
[320061211,1711125072545,1506.17687922,0.00020283,2]
[320061212,1711125072872,1506.17687922,0.00020584,2]
[320061214,1711125893045,245.63,0.00017842,2]
[320061218,1711126041302,-806.04078144,0.00018253,2]
[320061219,1711126041322,-1053.93053972,0.00018254,2]
[320061220,1711126041342,-268.38533668,0.00019521,2]
[320061221,1711126041365,-1374.63,0.00019551,2]
[320061222,1711126041385,-208.84,0.00019621,2]
[320061223,1711126041406,-250.0,0.00019641,2]
[320061224,1711126041428,-968.8,0.00019732,2]
[320061225,1711126041449,-17984.86508195,0.00019768,2]
[320061226,1711126047139,-163.56282045,0.00019768,2]
[320061227,1711126048092,-48042.26716695,0.00019768,2]
[320061228,1711126172335,-1000.0,0.00019766,2]
[320061229,1711126172357,-5990.6859,0.00019768,2]
[320061269,1711126232089,-265.70121733,0.00019768,2]
[320061270,1711126232178,-905.12941109,0.00019768,2]
[320061271,1711126232187,-150.0,0.00019768,2]
[320061272,1711126232197,-150.0,0.00019836,2]
[320061273,1711126232210,-499.99,0.00019836,2]
[320061274,1711126232219,-500.0,0.0001992,2]
[320061275,1711126232231,-150.0,0.0001992,2]
[320061276,1711126232241,-177.17,0.00019931,10]
[320061277,1711126232251,-224.96,0.00019953,2]
[320061278,1711126232260,-392.80058891,0.00019977,2]
[320061279,1711126232273,-1399.08302524,0.00019977,2]
[320061280,1711126232285,-12086.65638585,0.00019977,2]
[320061281,1711126232296,-854.24216831,0.00020105,2]
[320061282,1711126232306,-245.63,0.00020106,2]
[320061283,1711126232315,-1506.17687922,0.00020331,2]
[320061284,1711126232326,-760.0,0.000204,2]
[320061285,1711126232336,-1250.0,0.000205,2]
[320061286,1711126232345,-188.416521,0.00020548,2]
[320061287,1711126232355,-1506.17687922,0.00020605,2]
[320061288,1711126232365,-171.08,0.00020641,2]
[320061289,1711126232374,-296.84970733,0.00020788,2]
[320061290,1711126232384,-3000.0,0.0002079,2]
[320061291,1711126232393,-9583.81654578,0.00020899,2]
[320061310,1711126232497,-5351.76680834,0.00020899,2]
[320061313,1711126232508,-502.07800633,0.00020899,2]
[320061319,1711126232530,-315.85,0.00020899,2]
[320061323,1711126232542,-3092.665,0.00020899,2]
[320061414,1711126238538,-198.4,0.00020597,2]
[320061416,1711126238547,-13842.73253955,0.00020899,2]
[320061417,1711126238556,-9074.93431097,0.000209,2]
[320061420,1711126238568,-343.36425846,0.000209,2]
[320061422,1711126238580,-1013.36680485,0.000209,2]
[320061436,1711126238716,-329.5,0.000209,2]
[320061438,1711126238728,-6284.46162572,0.000209,2]
[320061440,1711126238738,-14165.8127,0.000209,2]
[320061442,1711126238748,-1302.9840477,0.000209,2]
[320061445,1711126238757,-7920.94038063,0.000209,2]
[320061447,1711126238767,-1052.96272134,0.000209,2]
[320061448,1711126238777,-1052.96272127,0.00020963,2]
[320061450,1711126238788,-155.0,0.00020997,2]
[320061452,1711126238799,-198.59407589,0.00020998,2]
[320061454,1711126238810,-155.22218572,0.00020998,2]
[320061456,1711126238820,-155.0,0.00020998,2]
[320061458,1711126238830,-522.65224442,0.00020998,2]
[320061460,1711126238840,-659.13113289,0.00020998,2]
[320061462,1711126238851,-5938.14548468,0.00020998,2]
[320061464,1711126238860,-155.28905305,0.00020998,2]
[320061466,1711126238873,-155.0,0.00020998,2]
[320061468,1711126238882,-155.0,0.00020998,2]
[320061470,1711126238893,-2915.46549776,0.00020998,2]
[320061475,1711126238928,-14525.63693606,0.00020998,2]
[320061477,1711126238940,-5750.79599451,0.00020998,2]
[320061479,1711126238950,-3220.0318928,0.00020998,2]
[320061481,1711126238959,-912.79090418,0.00020998,2]
[320061483,1711126238968,-720.90124315,0.00020998,2]
[320061485,1711126238977,-155.0,0.00020998,2]
[320061486,1711126238986,-1000.80707108,0.00020999,2]
[320061488,1711126238996,-39401.72992916,0.00021,2]
[320061491,1711126239008,-1423.11778436,0.00021,2]
[320061604,1711126240080,-31556.63699999,0.00021,2]
[320061637,1711126240396,-511.85377104,0.00021,2]
[320061891,1711126243035,-17946.90978545,0.00021,2]
[320061893,1711126243045,-1600.0,0.00021,3]
[320061895,1711126243055,-712.02089859,0.00021,2]
[320061897,1711126243064,-1000.0,0.00021,2]
[320061899,1711126243073,-1052.96272127,0.00021025,2]
[320061901,1711126243082,-1052.96272127,0.00021088,2]
[320061903,1711126243091,-10815.28,0.00021096,2]
[320061905,1711126243101,-1506.17687922,0.00021102,2]
[320061907,1711126243110,-1288.7941631,0.00021125,2]
[320061909,1711126243119,-1052.96272127,0.00021151,2]
[320061911,1711126243129,-1052.96272127,0.00021213,2]
[320061913,1711126243138,-1339.56842701,0.00021254,2]
[320061915,1711126243147,-1052.96272127,0.00021276,2]
[320061917,1711126243157,-1302.98404766,0.00021306,2]
[320061919,1711126243170,-7920.94038055,0.00021306,2]
[320061921,1711126243180,-1052.96272127,0.00021339,2]
[320061923,1711126243190,-188.416521,0.0002137,2]
[320061925,1711126243200,-1052.96272127,0.00021401,2]
[320061927,1711126243210,-1506.17687922,0.0002144,2]
[320061929,1711126243221,-1052.96272127,0.00021464,2]
[320061931,1711126243231,-180.0,0.00021466,2]
[320061933,1711126243242,-900.0,0.000215,7]
[320061935,1711126243251,-250.0,0.00021517,2]
[320061937,1711126243261,-171.33,0.00021517,2]
[320061939,1711126243274,-1052.96272127,0.00021527,2]
[320061941,1711126243284,-1846.38,0.00021565,2]
[320061943,1711126243293,-1052.96272127,0.0002159,2]
[320061945,1711126243303,-1900.0,0.000216,7]
[320061947,1711126243313,-1052.96272127,0.00021652,2]
[320061949,1711126243323,-167.14,0.00021661,2]
[320061951,1711126243333,-2800.0,0.000217,7]
[320061953,1711126243342,-1302.98404766,0.00021713,2]
[320061955,1711126243351,-7920.94038055,0.00021713,2]
[320061957,1711126243361,-1052.96272127,0.00021715,2]
[320061959,1711126243370,-210.0,0.00021744,2]
[320061961,1711126243379,-1052.96272127,0.00021778,2]
[320061963,1711126243389,-3800.0,0.000218,7]
[320061965,1711126243398,-151.19209089,0.000218,2]
[320061966,1711126243408,-151.19209089,0.000218,2]
[320061968,1711126243420,-151.19209089,0.000218,2]
[320061970,1711126243429,-151.19209089,0.000218,2]
[320061971,1711126243439,-151.19209089,0.000218,2]
[320061972,1711126243448,-151.19209089,0.000218,2]
[320061973,1711126243457,-151.19209089,0.000218,2]
[320061974,1711126243467,-151.19209089,0.000218,2]
[320061975,1711126243477,-151.19209089,0.000218,2]
[320061976,1711126243486,-151.19209089,0.000218,2]
[320061977,1711126243495,-151.19209089,0.000218,2]
[320061978,1711126243505,-151.19209089,0.000218,2]
[320061979,1711126243515,-151.19209089,0.000218,2]
[320061980,1711126243524,-151.19209089,0.000218,2]
[320061981,1711126243533,-151.19209089,0.000218,2]
[320061983,1711126243543,-151.19209089,0.000218,2]
[320061984,1711126243552,-151.19209089,0.000218,2]
[320061985,1711126243561,-151.19209089,0.000218,2]
[320061986,1711126243570,-151.19209089,0.000218,2]
[320061987,1711126243579,-151.19209089,0.000218,2]
[320061988,1711126243589,-151.19209089,0.000218,2]
[320061989,1711126243598,-151.19209089,0.000218,2]
[320061990,1711126243607,-151.19209089,0.000218,2]
[320061991,1711126243616,-151.19209089,0.000218,2]
[320061992,1711126243626,-151.19209089,0.000218,2]
[320061993,1711126243635,-151.19209089,0.000218,2]
[320061994,1711126243644,-151.19209089,0.000218,2]
[320061995,1711126243654,-151.19209089,0.000218,2]
[320061996,1711126243663,-151.19209089,0.000218,2]
[320061997,1711126243675,-151.19209089,0.000218,2]
[320061998,1711126243685,-151.19209089,0.000218,2]
[320061999,1711126243694,-151.19209089,0.000218,2]
[320062000,1711126243703,-151.19209089,0.000218,2]
[320062001,1711126243712,-151.19209089,0.000218,2]
[320062003,1711126243722,-151.19209089,0.000218,2]
[320062006,1711126243743,-151.19209089,0.000218,2]
[320062008,1711126243753,-151.19209089,0.000218,2]
[320062009,1711126243763,-151.19209089,0.000218,2]
[320062010,1711126243772,-151.19209089,0.000218,2]
[320062011,1711126243782,-151.19209089,0.000218,2]
[320062012,1711126243791,-151.19209089,0.000218,2]
[320062013,1711126243801,-151.19209089,0.000218,2]
[320062014,1711126243811,-151.19209089,0.000218,2]
[320062015,1711126243821,-151.19209089,0.000218,2]
[320062016,1711126243831,-151.19209089,0.000218,2]
[320062017,1711126243842,-151.19209089,0.000218,2]
[320062018,1711126243852,-151.19209089,0.000218,2]
[320062019,1711126243862,-151.19209089,0.000218,2]
[320062020,1711126243874,-151.19209089,0.000218,2]
[320062021,1711126243884,-151.19209089,0.000218,2]
[320062022,1711126243894,-151.19209089,0.000218,2]
[320062023,1711126243904,-151.19209089,0.000218,2]
[320062024,1711126243913,-151.19209089,0.000218,2]
[320062025,1711126243925,-151.19209089,0.000218,2]
[320062026,1711126243935,-151.19209089,0.000218,2]
[320062027,1711126243946,-151.19209089,0.000218,2]
[320062028,1711126243957,-151.19209089,0.000218,2]
[320062029,1711126243968,-151.19209089,0.000218,2]
[320062030,1711126243978,-151.19209089,0.000218,2]
[320062031,1711126243988,-151.19209089,0.000218,2]
[320062032,1711126243998,-151.19209089,0.000218,2]
[320062033,1711126244007,-151.19209089,0.000218,2]
[320062034,1711126244018,-151.19209089,0.000218,2]
[320062035,1711126244379,-151.19209089,0.000218,2]
[320062036,1711126244403,-151.19209089,0.000218,2]
[320062037,1711126244413,-151.19209089,0.000218,2]
[320062038,1711126244424,-151.19209089,0.000218,2]
[320062039,1711126244433,-151.19209089,0.000218,2]
[320062040,1711126244443,-151.19209089,0.000218,2]
[320062041,1711126244452,-151.19209089,0.000218,2]
[320062042,1711126244463,-151.19209089,0.000218,2]
[320062043,1711126244473,-151.19209089,0.000218,2]
[320062044,1711126244482,-151.19209089,0.000218,2]
[320062045,1711126244492,-151.19209089,0.000218,2]
[320062046,1711126244501,-151.19209089,0.000218,2]
[320062047,1711126244510,-151.19209089,0.000218,2]
[320062048,1711126244524,-151.19209089,0.000218,2]
[320062049,1711126244533,-151.19209089,0.000218,2]
[320062050,1711126244542,-151.19209089,0.000218,2]
[320062051,1711126244551,-151.19209089,0.000218,2]
[320062052,1711126244560,-151.19209089,0.000218,2]
[320062053,1711126244570,-151.19209089,0.000218,2]
[320062054,1711126244579,-151.19209089,0.000218,2]
[320062055,1711126244593,-151.19209089,0.000218,2]
[320062056,1711126244603,-151.19209089,0.000218,2]
[320062057,1711126244613,-151.19209089,0.000218,2]
[320062058,1711126244623,-151.19209089,0.000218,2]
[320062059,1711126244633,-151.19209089,0.000218,2]
[320062060,1711126244642,-151.19209089,0.000218,2]
[320062061,1711126244652,-151.19209089,0.000218,2]
[320062062,1711126244661,-151.19209089,0.000218,2]
[320062063,1711126244673,-151.19209089,0.000218,2]
[320062064,1711126244682,-151.19209089,0.000218,2]
[320062065,1711126244692,-151.19209089,0.000218,2]
[320062066,1711126244701,-4136.778,0.00021817,2]
[320062067,1711126244711,-7500.0,0.00021817,2]
[320062068,1711126244720,-5495.58578959,0.00021817,2]
[320062069,1711126244729,-178.07591373,0.00021817,2]
[320062070,1711126244739,-1052.96272127,0.0002184,2]
[320062071,1711126244748,-177.17,0.00021884,10]
[320062072,1711126244758,-178.07591371,0.00021886,2]
[320062073,1711126244769,-4700.0,0.000219,7]
[320062074,1711126244778,-1052.96272127,0.00021903,2]
[320062075,1711126244788,-1053.30695619,0.00021915,2]
[320062076,1711126244801,-590.42269699,0.00021915,2]
[320062077,1711126244811,-4233.46209586,0.00021916,2]
[320062078,1711126244826,-25766.52790414,0.00021916,2]
[320062079,1711126244836,-429.88575012,0.00021916,2]
[320062080,1711126244846,-4298.15194202,0.00021916,2]
[320062081,1711126244855,-1362.0,0.00021917,2]
[320062082,1711126244865,-500.39471793,0.00021917,2]
[320062083,1711126244877,-500.0,0.00021917,2]
[320062084,1711126244887,-500.0,0.00021917,2]
[320062085,1711126244896,-500.0,0.00021917,2]
[320062086,1711126244906,-500.0,0.00021917,2]
[320062087,1711126244916,-446.25287659,0.00021917,2]
[320062088,1711126244925,-500.0,0.00021917,2]
[320062089,1711126244935,-500.0,0.00021917,2]
[320062090,1711126244945,-500.0,0.00021917,2]
[320062091,1711126244955,-500.0,0.00021917,2]
[320062092,1711126244964,-500.0,0.00021917,2]
[320062093,1711126244973,-500.0,0.00021917,2]
[320062094,1711126244983,-500.0,0.00021917,2]
[320062095,1711126244992,-500.0,0.00021917,2]
[320062096,1711126245002,-500.0,0.00021917,2]
[320062097,1711126245011,-500.0,0.00021917,2]
[320062098,1711126245021,-500.0,0.00021917,2]
[320062099,1711126245030,-500.0,0.00021917,2]
[320062100,1711126245040,-500.0,0.00021917,2]
[320062101,1711126245050,-500.0,0.00021917,2]
[320062102,1711126245059,-500.0,0.00021917,2]
[320062103,1711126245069,-500.0,0.00021917,2]
[320062104,1711126245080,-500.0,0.00021917,2]
[320062105,1711126245090,-500.0,0.00021917,2]
[320062106,1711126245099,-500.86133654,0.00021917,2]
[320062107,1711126245109,-500.0,0.00021917,2]
[320062108,1711126245118,-500.0,0.00021917,2]
[320062109,1711126245128,-500.0,0.00021917,2]
[320062110,1711126245137,-500.0,0.00021917,2]
[320062111,1711126245147,-500.0,0.00021917,2]
[320062112,1711126245156,-183.34459395,0.00021917,2]
[320062113,1711126245167,-500.0,0.00021917,2]
[320062114,1711126245177,-500.0,0.00021917,2]
[320062115,1711126245187,-500.0,0.00021917,2]
[320062116,1711126245196,-226.74770893,0.00021917,2]
[320062117,1711126245206,-500.71172902,0.00021917,2]
[320062118,1711126245216,-500.0,0.00021917,2]
[320062119,1711126245225,-500.0,0.00021917,2]
[320062120,1711126245234,-500.0,0.00021917,2]
[320062121,1711126245243,-500.0,0.00021917,2]
[320062122,1711126245255,-500.0,0.00021917,2]
[320062123,1711126245265,-509.31736155,0.00021917,2]
[320062124,1711126245275,-500.0,0.00021917,2]
[320062125,1711126245286,-500.0,0.00021917,2]
[320062126,1711126245295,-500.0,0.00021917,2]
[320062127,1711126245305,-500.0,0.00021917,2]
[320062128,1711126245315,-500.0,0.00021917,2]
[320062129,1711126245324,-500.0,0.00021917,2]
[320062130,1711126245334,-500.0,0.00021917,2]
[320062131,1711126245344,-500.0,0.00021917,2]
[320062132,1711126245355,-500.0,0.00021917,2]
[320062133,1711126245364,-500.0,0.00021917,2]
[320062134,1711126245374,-500.0,0.00021917,2]
[320062135,1711126245384,-500.0,0.00021917,2]
[320062136,1711126245394,-500.0,0.00021917,2]
[320062137,1711126245404,-500.0,0.00021917,2]
[320062138,1711126245413,-500.0,0.00021917,2]
[320062139,1711126245427,-500.0,0.00021917,2]
[320062140,1711126245436,-500.0,0.00021917,2]
[320062141,1711126245445,-500.0,0.00021917,2]
[320062142,1711126245455,-500.0,0.00021917,2]
[320062143,1711126245464,-502.56537871,0.00021917,2]
[320062144,1711126245473,-500.0,0.00021917,2]
[320062145,1711126245482,-500.0,0.00021917,2]
[320062146,1711126245492,-500.0,0.00021917,2]
[320062147,1711126245501,-696.16,0.00021917,2]
[320062148,1711126245511,-500.41891889,0.00021917,2]
[320062149,1711126245520,-669.29,0.00021917,2]
[320062150,1711126245529,-500.0,0.00021917,2]
[320062151,1711126245539,-500.0,0.00021917,2]
[320062152,1711126245549,-500.0,0.00021917,2]
[320062153,1711126245558,-1029.08,0.00021917,2]
[320062154,1711126245568,-500.0,0.00021917,2]
[320062155,1711126245577,-500.0,0.00021917,2]
[320062156,1711126245586,-500.0,0.00021917,2]
[320062157,1711126245596,-500.0,0.00021917,2]
[320062158,1711126245606,-500.0,0.00021917,2]
[320062159,1711126245624,-500.0,0.00021917,2]
[320062160,1711126245636,-500.0,0.00021917,2]
[320062161,1711126245646,-500.0,0.00021917,2]
[320062162,1711126245655,-500.0,0.00021917,2]
[320062163,1711126245667,-500.0,0.00021917,2]
[320062164,1711126245677,-500.0,0.00021917,2]
[320062165,1711126245687,-500.0,0.00021917,2]
[320062166,1711126245697,-500.0,0.00021917,2]
[320062167,1711126245707,-500.0,0.00021917,2]
[320062168,1711126245716,-500.0,0.00021917,2]
[320062169,1711126245726,-500.0,0.00021917,2]
[320062170,1711126245735,-500.56088805,0.00021917,2]
[320062171,1711126245744,-500.0,0.00021917,2]
[320062172,1711126245754,-400.0,0.00021917,21]